fUST/lending_fUST_20251218
["ID","MTS","AMOUNT","RATE_DAILY","PERIOD"]
[398971635,1766039894537,500.23098351,0.00013699,2]
[398971636,1766039894560,501.36448216,0.00013699,2]
[398971637,1766039946236,500.0,0.00013699,2]
[398971638,1766039946316,501.57924283,0.00014247,2]
[398971639,1766039949966,500.15368938,0.00013699,2]
[398971640,1766040004759,461.3776346,0.00013699,2]
[398971641,1766040005079,500.0,0.00013273,2]
[398971642,1766040005964,500.3159488,0.00013699,2]
[398971643,1766040014036,500.73370401,0.00013699,2]
[398971644,1766040016304,500.8772248,0.00013699,2]
[398971645,1766040017438,500.78586347,0.00013821,2]
[398971646,1766040065936,500.0,0.00013699,2]
[398971653,1766040548126,-5000.0,0.00033586,2]
[398971654,1766040548148,-1968.3493682,0.00033925,2]
[398971655,1766040548169,-561.4590108,0.00035,20]
[398971664,1766040631866,-395.33995524,0.00033,60]
[398971665,1766040631879,-773.76813245,0.00033,60]
[398971666,1766040631928,-1127.40640817,0.00033,60]
[398971667,1766040631941,-1703.48550414,0.00033,60]
[398971668,1766040631951,-1438.5409892,0.00035,20]
[398971669,1766040631960,-3000.0,0.00035,40]
[398971670,1766040631970,-5000.0,0.00035317,2]
[398971671,1766040631980,-1000.0,0.00035317,2]
[398971672,1766040631989,-197.993382,0.00035674,2]
[398971673,1766040631999,-173.272,0.00036394,45]
[398971674,1766040632008,-500.0,0.00036489,15]
[398971675,1766040632018,-500.0,0.00036489,15]
[398971676,1766040632027,-500.0,0.00036489,15]
[398971677,1766040632036,-500.0,0.00036489,15]
[398971678,1766040632045,-500.0,0.00036489,15]
[398971679,1766040632054,-500.0,0.00036489,15]
[398971680,1766040632063,-500.0,0.00036489,15]
[398971681,1766040632071,-500.0,0.00036489,15]
[398971682,1766040632080,-500.0,0.00036489,15]
[398971683,1766040632091,-486.70812462,0.00036489,15]
[398971684,1766040632300,-13.29187538,0.00036489,15]
[398971685,1766040632310,-512.11594451,0.00036489,15]
[398971686,1766040632320,-500.0,0.00036489,15]
[398971687,1766040632330,-500.0,0.00036489,15]
[398971688,1766040632340,-500.0,0.00036489,15]
[398971689,1766040632351,-500.0,0.00036489,15]
[398971690,1766040632363,-500.0,0.00036489,15]
[398971691,1766040632372,-500.0,0.00036489,15]
[398971692,1766040632383,-500.0,0.00036489,15]
[398971693,1766040632392,-500.0,0.00036489,15]
[398971694,1766040632402,-479.09463558,0.00036489,15]
[398971695,1766040632411,-500.0,0.00036489,15]
[398971696,1766040632421,-500.0,0.00036489,15]
[398971697,1766040632431,-500.0,0.00036489,15]
[398971698,1766040632444,-500.0,0.00036489,15]
[398971699,1766040632455,-500.0,0.00036489,15]
[398971700,1766040632465,-500.0,0.00036489,15]
[398971701,1766040632474,-500.0,0.00036489,15]
[398971702,1766040632484,-500.0,0.00036489,15]
[398971703,1766040632493,-500.0,0.00036489,15]
[398971704,1766040632503,-500.0,0.00036489,15]
[398971705,1766040632512,-500.0,0.00036489,15]
[398971706,1766040632522,-500.0,0.00036489,15]
[398971707,1766040632532,-240.13915339,0.00036489,15]
[398971708,1766040632545,-500.0,0.00036489,15]
[398971709,1766040632555,-500.0,0.00036489,15]
[398971710,1766040632565,-500.0,0.00036489,15]
[398971711,1766040632574,-500.0,0.00036489,15]
[398971712,1766040632585,-500.0,0.00036489,15]
[398971713,1766040632594,-500.0,0.00036489,15]
[398971714,1766040632603,-500.0,0.00036489,15]
[398971715,1766040632613,-500.0,0.00036489,15]
[398971716,1766040632623,-383.86039153,0.00036489,15]
[398971717,1766040632632,-500.0,0.00036489,15]
[398971718,1766040632641,-323.0205602,0.00036489,15]
[398971743,1766040637900,-176.9794398,0.00036489,15]
[398971745,1766040637910,-500.0,0.00036489,15]
[398971747,1766040637918,-500.0,0.00036489,15]
[398971749,1766040637927,-500.0,0.00036489,15]
[398971751,1766040637936,-495.24415005,0.00036489,15]
[398971753,1766040637947,-4.75584995,0.00036489,15]
[398971755,1766040637956,-500.0,0.00036489,15]
[398971757,1766040637966,-500.0,0.00036489,15]
[398971759,1766040637975,-200.48856869,0.00036489,15]
[398971761,1766040637987,-299.51143131,0.00036489,15]
[398971763,1766040637996,-472.58951576,0.00036489,15]
[398971765,1766040638007,-27.41048424,0.00036489,15]
[398971767,1766040638017,-500.0,0.00036489,15]
[398971770,1766040638026,-500.0,0.00036489,15]
[398971773,1766040638035,-500.0,0.00036489,15]
[398971775,1766040638044,-500.0,0.00036489,15]
[398971778,1766040638054,-500.0,0.00036489,15]
[398971780,1766040638063,-500.0,0.00036489,15]
[398971782,1766040638072,-500.0,0.00036489,15]
[398971784,1766040638081,-500.0,0.00036489,15]
[398971786,1766040638091,-500.0,0.00036489,15]
[398971788,1766040638100,-500.0,0.00036489,15]
[398971790,1766040638109,-500.0,0.00036489,15]
[398971792,1766040638118,-500.0,0.00036489,15]
[398971793,1766040638128,-500.0,0.00036489,15]
[398971795,1766040638140,-500.0,0.00036489,15]
[398971797,1766040638150,-500.0,0.00036489,15]
[398971799,1766040638159,-500.0,0.00036489,15]
[398971800,1766040638169,-500.0,0.00036489,15]
[398971802,1766040638178,-500.0,0.00036489,15]
[398971804,1766040638188,-500.0,0.00036489,15]
[398971805,1766040638202,-600.0,0.00037219,30]
[398971806,1766040638212,-6293.13205938,0.00039136,2]
[398971807,1766040638224,-2530.59081494,0.00039136,2]
[398971808,1766040638236,-3982.7108227,0.00039136,2]
[398971809,1766040638247,-1534.51107964,0.00039136,2]
[398971810,1766040638257,-1000.0,0.00039335,15]
[398971811,1766040638266,-1000.0,0.00039335,15]
[398971812,1766040638276,-611.04292438,0.00039335,15]
[398971813,1766040638285,-160.4728589,0.00040297,7]
[398971814,1766040638294,-3072.34876276,0.00040519,2]
[398971815,1766040638306,-2322.27181308,0.00040519,2]
[398971816,1766040638317,-4044.22675045,0.00040519,2]
[398971817,1766040638327,-720.0,0.00040941,60]
[398971818,1766040638336,-304.18,0.000415,17]
[398971819,1766040638346,-150.99,0.000415,12]
[398971820,1766040638356,-798.58849414,0.00041885,3]
[398971821,1766040638365,-621.38026935,0.00041885,3]
[398971822,1766040638375,-1362.29749513,0.00041987,2]
[398971823,1766040638386,-127.60612207,0.00041987,2]
[398971824,1766040640161,-600.0,0.00037218,30]
[398971825,1766040640171,-720.0,0.0004094,60]
[398971826,1766040640181,-932.39510593,0.00041987,2]
[398971827,1766040640191,-514.34063432,0.00042999,7]
[398971828,1766040640200,-264.32854717,0.00042999,31]
[398971829,1766040640209,-500.0,0.00042999,31]
[398971830,1766040640219,-407.23543191,0.00042999,31]
[398971831,1766040640228,-500.0,0.00042999,31]
[398971832,1766040640238,-500.0,0.00042999,31]
[398971833,1766040640247,-28796.66567081,0.00043,30]
[398971834,1766040640257,-160.0,0.0004318,2]
[398971835,1766040640267,-151.0,0.000437,15]
[398971836,1766040640276,-151.0,0.000442,19]
[398971837,1766040640286,-30206.98252946,0.000444,15]
[398971838,1766040640295,-424.382895,0.00044421,2]
[398971839,1766040640304,-162.578385,0.00044521,2]
[398971840,1766040640313,-151.0,0.000447,12]
[398971841,1766040640323,-151.0,0.000448,17]
[398971842,1766040640332,-151.0,0.000448,14]
[398971843,1766040640341,-424.38289499,0.00045041,2]
[398971844,1766040640351,-151.0,0.000451,26]
[398971845,1766040640360,-151.0,0.000451,25]
[398971846,1766040640369,-151.0,0.000451,29]
[398971847,1766040640378,-151.0,0.000455,26]
[398971848,1766040640387,-151.0,0.000455,28]
[398971849,1766040640396,-151.0,0.000456,21]
[398971850,1766040640406,-424.38289499,0.00045661,2]
[398971851,1766040640415,-151.0,0.000458,28]
[398971852,1766040640424,-151.0,0.000458,29]
[398971853,1766040640433,-190.11,0.00046,90]
[398971854,1766040640442,-151.0,0.000461,28]
[398971855,1766040640452,-151.0,0.000461,25]
[398971856,1766040640462,-151.0,0.000461,29]
[398971857,1766040640471,-151.0,0.000462,28]
[398971858,1766040640480,-424.38289499,0.0004628,2]
[398971859,1766040640489,-151.0,0.000464,24]
[398971860,1766040640498,-151.0,0.000464,30]
[398971861,1766040640508,-151.0,0.000464,24]
[398971862,1766040640517,-151.0,0.000465,21]
[398971863,1766040640525,-500.0,0.00046575,120]
[398971864,1766040640535,-151.0,0.000467,29]
[398971865,1766040640548,-151.0,0.000467,26]
[398971866,1766040640557,-151.0,0.000467,30]
[398971867,1766040640566,-500.0,0.00046712,120]
[398971868,1766040640575,-492.11083844,0.00046849,120]
[398971869,1766040640586,-424.38289499,0.000469,2]
[398971870,1766040640595,-322.71958857,0.0004699,4]
[398971871,1766040640603,-301632.06374231,0.00047,14]
[398971875,1766040642968,-864.0,0.00045033,60]
[398971877,1766040642977,-86.0,0.00047,14]
[398971878,1766040643025,-5323.05824045,0.00047,14]
[398971886,1766040646035,-39577.75067388,0.00047,14]
[398971887,1766040646095,-608.11491716,0.00047,14]
[398971888,1766041581288,161.395145,0.00013699,2]
[398971889,1766041590130,-277.19471408,0.00023969,59]
[398971890,1766041769077,-1198.85959301,0.00024953,2]
[398971891,1766041812749,177.8220399,0.00013699,2]
[398971892,1766041813915,500.0,0.00013273,2]
[398971893,1766041813940,500.0,0.00013699,2]
[398971894,1766041813966,1000.0,0.00013821,2]
[398971895,1766041813991,500.12011481,0.00013699,2]
[398971896,1766041814015,524.67410443,0.00014247,2]
[398971897,1766041814043,1500.0,0.00014368,2]
[398971898,1766041814082,1020.26477333,0.00014916,2]
[398971937,1766041832209,-150.0,0.00016368,2]
[398971939,1766041832218,-150.0,0.00017148,2]
[398971940,1766041832227,-150.0,0.00017927,2]
[398971942,1766041832236,-150.0,0.00018706,2]
[398971944,1766041832245,-150.0,0.00019486,2]
[398971945,1766041832254,-174.88,0.00020265,2]
[398971946,1766041832262,-204.02,0.00021045,2]
[398971947,1766041832271,-233.17,0.00021824,2]
[398971948,1766041832281,-262.31,0.00022604,2]
[398971949,1766041832291,-291.46,0.00023383,2]
[398971950,1766041832301,-3801.14040699,0.00024953,2]
[398971951,1766041832312,-818.0,0.00024953,2]
[398971952,1766041832320,-291.88555486,0.00027397,5]
[398971953,1766041832330,-161.395145,0.00034247,2]
[398971954,1766041832339,-500.0,0.00039343,15]
[398971955,1766041832348,-500.0,0.00039343,15]
[398971956,1766041832358,-386.56607062,0.00039343,15]
[398971957,1766041832367,-500.0,0.00039343,15]
[398971958,1766041832376,-320.42893239,0.00039343,15]
[398971959,1766041832386,-501.34621606,0.00039343,15]
[398971960,1766041832396,-471.1265726,0.00039343,15]
[398971961,1766041832405,-500.0,0.00039343,15]
[398971962,1766041832415,-1590.11929177,0.00039344,120]
[398971963,1766041832424,-300.0,0.00039344,30]
[398971964,1766041832434,-32206.48896564,0.00039344,30]
[398971965,1766041832444,-740.0,0.0004,20]
[398971966,1766041832453,-600.0,0.00040129,60]
[398971967,1766041832463,-3764.5743046,0.0004139,3]
[398971968,1766041832472,-173.273,0.00041399,61]
[398971969,1766041832483,-1592.93,0.000414,2]
[398971970,1766041832492,-263.55580782,0.000414,2]
[398971971,1766041832502,-150.0,0.00044142,120]
[398971972,1766041832512,-720.0,0.00044142,60]
[398971973,1766041832521,-219.31,0.00045,120]
[398971974,1766041832531,-160.4728589,0.00045493,7]
[398971975,1766041832541,-177.0,0.00046142,120]
[398971976,1766041832550,-2823.43072845,0.00046789,4]
[398971977,1766041832559,-360.03844402,0.00046798,7]
[398971978,1766041832569,-185.02998302,0.00046798,120]
[398971979,1766041832578,-500.0,0.00046798,120]
[398971980,1766041832587,-500.0,0.00046798,120]
[398971981,1766041832597,-125000.0,0.00046799,120]
[398971982,1766041832607,-156.496608,0.00046799,120]
[398971983,1766041832616,-151.0,0.00046799,120]
[398971984,1766041832625,-154.933687,0.00046799,120]
[398971985,1766041832635,-151.0,0.00046799,120]
[398971986,1766041832644,-151.0,0.00046799,120]
[398971987,1766041832654,-151.0,0.00046799,120]
[398971988,1766041832663,-151.0,0.00046799,120]
[398971989,1766041832672,-151.0,0.00046799,120]
[398971990,1766041832681,-151.0,0.00046799,120]
[398971991,1766041832691,-151.0,0.00046799,120]
[398971992,1766041832701,-5786.61742226,0.0004699,4]
[398971993,1766041832712,-631.03378038,0.0004699,4]
[398971996,1766041838206,-335.06480233,0.00046798,120]
[398971997,1766041838218,-3934.92813496,0.0004699,4]
[398971998,1766041838230,-1000.0,0.00046999,120]
[398971999,1766041838240,-29322.35561732,0.00047,14]
[398972011,1766041843343,-1183.04560614,0.00047,14]
[398972013,1766041863897,159.92205177,0.00013699,2]
[398972014,1766041863922,500.0,0.00013273,2]
[398972015,1766041863987,433.94315266,0.00013821,2]
[398972016,1766041874131,500.30450512,0.00013699,2]
[398972017,1766041900637,150.0,0.00014909,2]
[398972018,1766041966355,150.0,0.00014858,2]
[398972019,1766041983800,160.90501662,0.00013699,2]
[398972020,1766041984161,500.56415557,0.00013699,2]
[398972021,1766041984196,501.95262987,0.00013699,2]
[398972022,1766041984222,502.54715627,0.00013699,2]
[398972023,1766041984248,500.17589618,0.00013699,2]
[398972024,1766041985182,500.0,0.00013699,2]
[398972025,1766041985235,1003.17148127,0.00014247,2]
[398972026,1766041986826,303.48468743,0.00013699,2]
[398972027,1766041987153,500.49812742,0.00013699,2]
[398972028,1766042001271,500.0,0.00013699,2]
[398972038,1766042898221,288.52684286,0.0001,2]
[398972039,1766042907689,1000.0,0.0001,2]
[398972061,1766043032284,-500.0,0.00025,5]
[398972062,1766043032293,-1130.14684603,0.0002772,2]
[398972063,1766043032304,-1405.89569252,0.0002772,2]
[398972064,1766043032315,-2463.95746145,0.0002772,2]
[398972065,1766043032324,-501.45506883,0.00028,2]
[398972066,1766043032332,-883.0,0.00028,2]
[398972067,1766043032341,-1200.0,0.0003568,3]
[398972068,1766043032350,-400.0,0.0003568,2]
[398972069,1766043032359,-1200.0,0.0003568,3]
[398972070,1766043032368,-170.0,0.0003568,3]
[398972071,1766043032377,-200.0,0.0003823,2]
[398972072,1766043032386,-500.0,0.00039351,15]
[398972073,1766043032395,-500.0,0.00039351,15]
[398972074,1766043032404,-584.73452938,0.00039351,15]
[398972075,1766043032413,-501.09537265,0.00039351,15]
[398972077,1766043032422,-423.55710937,0.00039351,15]
[398972079,1766043032431,-500.0,0.00039351,15]
[398972081,1766043032440,-500.0,0.00039351,15]
[398972083,1766043032450,-423.34406532,0.00039351,15]
[398972085,1766043032459,-418.287076,0.00039351,15]
[398972087,1766043032469,-500.0,0.00039351,15]
[398972089,1766043032479,-500.0,0.00039351,15]
[398972091,1766043032489,-189.85413875,0.00039351,15]
[398972093,1766043032498,-434.54536163,0.00039351,15]
[398972095,1766043032508,-252.02691081,0.00039351,7]
[398972097,1766043032517,-500.0,0.00039351,15]
[398972099,1766043032526,-36106.89721972,0.00039352,30]
[398972101,1766043032535,-29048.91616727,0.00039352,30]
[398972102,1766043032545,-27698.67031903,0.00039352,30]
[398972103,1766043032556,-956.23404994,0.00039352,30]
[398972104,1766043032600,-1046.39845533,0.00039352,30]
[398972119,1766043038563,-32505.80427364,0.00039352,30]
[398972120,1766043038660,-2960.73088,0.00039352,30]
[398972123,1766043038672,-1074.99956033,0.00039352,30]
[398972125,1766043038683,-3535.89918506,0.00039352,30]
[398972126,1766043038694,-6146.25790288,0.00039352,30]
[398972129,1766043040481,-661.98869106,0.00039352,30]
[398972130,1766043040497,-675.61857851,0.00039352,30]
[398972137,1766043043536,-55.26593499,0.00039352,30]
[398972163,1766044171131,-5000.0,0.00024456,59]
[398972164,1766044171156,-150.0,0.00024954,2]
[398972165,1766044171180,-1200.0,0.00026848,2]
[398972166,1766044171200,-177.0,0.00026954,2]
[398972167,1766044171220,-204.0,0.00028954,2]
[398972168,1766044171240,-300.0,0.00030949,2]
[398972169,1766044171260,-511.47041142,0.0003095,2]
[398972173,1766044232444,-372.83395646,0.00024953,2]
[398972174,1766044232456,-1371.92452659,0.00024953,2]
[398972175,1766044232468,-1258.77916983,0.00024953,2]
[398972176,1766044232479,-808.28639306,0.00024953,2]
[398972177,1766044232491,-1188.17595406,0.00024953,2]
[398972178,1766044232502,-150.0,0.00025079,2]
[398972179,1766044232512,-177.0,0.00027079,2]
[398972180,1766044232521,-688.52958858,0.0003095,2]
[398972181,1766044232530,-300.0,0.00035255,3]
[398972182,1766044232539,-300.0,0.00035255,3]
[398972183,1766044232549,-300.0,0.00035255,3]
[398972184,1766044232558,-2472.97994996,0.00037857,2]
[398972185,1766044232568,-281.0,0.00039352,30]
[398972186,1766044232578,-500.0,0.00039364,120]
[398972187,1766044232587,-234.14415303,0.00039365,120]
[398972188,1766044232596,-183.278,0.00039365,54]
[398972189,1766044232605,-500.0,0.00039365,120]
[398972190,1766044232615,-500.0,0.00039365,120]
[398972191,1766044232624,-500.0,0.00039365,120]
[398972192,1766044232633,-622.5640932,0.00039365,120]
[398972193,1766044232642,-301.87,0.00039365,120]
[398972194,1766044232652,-500.0,0.00039365,15]
[398972195,1766044232661,-176.41883757,0.00039365,7]
[398972196,1766044232670,-154.18175315,0.00039365,15]
[398972197,1766044232680,-332.61877577,0.00039365,15]
[398972198,1766044232689,-235.60170719,0.00039365,15]
[398972199,1766044232698,-500.0,0.00039365,15]
[398972200,1766044232708,-500.0,0.00039365,15]
[398972201,1766044232717,-500.0,0.00039365,15]
[398972202,1766044232727,-500.0,0.00039365,15]
[398972203,1766044232736,-500.0,0.00039365,15]
[398972204,1766044232746,-500.0,0.00039365,15]
[398972205,1766044232755,-505.51351684,0.00039365,15]
[398972206,1766044232764,-377.29073047,0.00039365,15]
[398972207,1766044232774,-153.03230338,0.00039365,15]
[398972208,1766044232783,-140475.57100332,0.00039366,30]
[398972209,1766044232795,-1870.78032346,0.00039366,30]
[398972210,1766044232806,-1064.38714063,0.00039366,30]
[398972231,1766044238529,-204.0,0.00029079,2]
[398972232,1766044238539,-153.69530611,0.00031079,2]
[398972233,1766044238548,-84772.75650416,0.00039366,30]
[398972234,1766044238559,-54996.76913205,0.00039366,30]
[398972235,1766044238569,-6429.496537,0.00039366,30]
[398972236,1766044238584,-314.83229562,0.00039366,30]
[398972237,1766044238595,-2513.30305114,0.00039366,30]
[398972262,1766044240701,-1000.0,0.00024953,2]
[398972282,1766044243629,-373.817,0.00024953,2]
[398972283,1766044243640,-911.75,0.00024953,2]
[398972298,1766044246702,-1060.13935512,0.00024953,2]
[398972299,1766044246715,-1654.29364488,0.00024953,2]
[398972300,1766044246724,-9615.68635512,0.00039366,30]
[398972301,1766044387361,161.395145,0.00013699,2]
[398972303,1766045359111,-5000.0,0.00023728,2]
[398972304,1766045359134,-150.0,0.00024212,2]
[398972305,1766045359155,-808.0,0.00024456,2]
[398972306,1766045359177,-246.46024946,0.00026212,2]
[398972307,1766045359198,-300.0,0.00026844,2]
[398972308,1766045359224,-300.0,0.00026844,2]
[398972309,1766045359247,-574.75196196,0.00026845,2]
[398972345,1766045431773,-612.65091569,0.00026577,2]
[398972347,1766045431786,-1237.29786326,0.00026577,2]
[398972350,1766045431797,-3150.05122105,0.00026577,2]
[398972352,1766045431807,-852.0,0.00026577,2]
[398972354,1766045431817,-625.0,0.00026844,2]
[398972355,1766045431826,-448.0,0.00026845,2]
[398972357,1766045431836,-300.0,0.00026846,2]
[398972360,1766045431845,-300.0,0.00026846,2]
[398972362,1766045431855,-300.0,0.00026848,2]
[398972364,1766045431864,-1041.66666667,0.00028,7]
[398972366,1766045431873,-1041.66666667,0.00028,3]
[398972368,1766045431882,-774.91179067,0.00028,7]
[398972425,1766045437733,-5000.0,0.00024953,2]
[398972426,1766045437743,-266.754876,0.00028,7]
[398972427,1766045437752,-483.99688242,0.00028,3]
[398972428,1766045437860,-557.66978425,0.00028,3]
[398972429,1766045437869,-925.41947073,0.00028303,2]
[398972442,1766045439904,-116.24719594,0.00028303,2]
[398972443,1766045439914,-1041.66666667,0.00029,10]
[398972444,1766045439923,-1041.66666667,0.00029,10]
[398972445,1766045439932,-20000.0,0.0003,4]
[398972446,1766045439942,-180.56,0.0003228,32]
[398972447,1766045439951,-600.0,0.00035964,30]
[398972448,1766045439960,-1041.66666667,0.00039,10]
[398972449,1766045439969,-19064.0,0.00039,6]
[398972450,1766045439979,-237.26177544,0.00039066,22]
[398972451,1766045439987,-3807.255658,0.00039166,2]
[398972452,1766045439996,-1153.17165887,0.00039256,3]
[398972453,1766045440006,-9674.71197183,0.000393,2]
[398972454,1766045440015,-457.9272272,0.00039365,15]
[398972455,1766045440024,-1041.66666667,0.00039366,30]
[398972456,1766045440033,-151.0,0.00039366,120]
[398972457,1766045440042,-151.0,0.00039366,120]
[398972458,1766045440051,-1041.66666667,0.00039366,120]
[398972459,1766045440060,-237.9803,0.00039366,120]
[398972460,1766045440072,-151.0,0.00039366,120]
[398972461,1766045440081,-163.777667,0.00039366,120]
[398972462,1766045440090,-151.0,0.00039366,120]
[398972463,1766045440099,-151.0,0.00039366,120]
[398972464,1766045440107,-151.0,0.00039366,120]
[398972465,1766045440116,-152.611731,0.00039366,120]
[398972466,1766045440126,-152.289045,0.00039366,120]
[398972467,1766045440134,-151.0,0.00039366,120]
[398972468,1766045440143,-151.0,0.00039366,120]
[398972469,1766045440152,-151.0,0.00039366,120]
[398972470,1766045440161,-151.580444,0.00039366,120]
[398972471,1766045440170,-151.0,0.00039366,120]
[398972472,1766045440179,-151.0,0.00039366,120]
[398972473,1766045440187,-184.784357,0.00039366,120]
[398972474,1766045440196,-151.0,0.00039366,120]
[398972475,1766045440205,-151.0,0.00039366,120]
[398972476,1766045440214,-151.0,0.00039366,120]
[398972477,1766045440223,-298.259429,0.00039366,120]
[398972478,1766045440232,-151.0,0.00039366,120]
[398972479,1766045440241,-151.0,0.00039366,120]
[398972480,1766045440249,-151.0,0.00039366,120]
[398972481,1766045440258,-152.552002,0.00039366,120]
[398972482,1766045440267,-888.078322,0.00039366,120]
[398972483,1766045440276,-888.078322,0.00039366,120]
[398972484,1766045440285,-888.078322,0.00039366,120]
[398972485,1766045440294,-888.078322,0.00039366,120]
[398972486,1766045440303,-888.078322,0.00039366,120]
[398972487,1766045440440,-888.078322,0.00039366,120]
[398972488,1766045440451,-888.078322,0.00039366,120]
[398972489,1766045440460,-888.078322,0.00039366,120]
[398972490,1766045440469,-245633.31332996,0.00039366,30]
[398972557,1766045442808,-1846.28983336,0.00039366,30]
[398972571,1766045445959,-250.34975896,0.00034934,2]
[398972572,1766045445969,-434.94898434,0.00039366,30]
[398977128,1766046399978,-258907.58617026,0.00039372,30]
[398977129,1766046400005,-3737567.05,0.00039372,90]
[398977133,1766046400179,-101873.71927935,0.00039372,30]
[398977134,1766046400207,-520.13287333,0.00039372,20]
[398977136,1766046400233,-400.26430482,0.00039372,20]
[398977137,1766046400258,-50000.0,0.00039372,30]
[398977150,1766046400901,401.6,0.00039372,20]
[398977158,1766046401298,262.86712667,0.00039372,20]
[398977165,1766046401612,520.23287333,0.00039372,20]
[398977995,1766046451201,-2309.12700765,0.0002234,59]
[398977996,1766046451236,-5000.0,0.00022566,59]
[398977998,1766046451268,-300.0,0.00039,120]
[398977999,1766046451300,-217.919,0.00039165,54]
[398978001,1766046451331,-151.0,0.00039372,120]
[398978002,1766046451361,-200.031408,0.00039372,120]
[398978004,1766046451390,-151.0,0.00039372,120]
[398978005,1766046451422,-207.694408,0.00039372,120]
[398978007,1766046451453,-209.30624,0.00039372,120]
[398978008,1766046451485,-532.846994,0.00039372,120]
[398978009,1766046451516,-532.846994,0.00039372,120]
[398978011,1766046451548,-532.846994,0.00039372,120]
[398978012,1766046451581,-532.846994,0.00039372,120]
[398978014,1766046451613,-532.846994,0.00039372,120]
[398978015,1766046451643,-532.846994,0.00039372,120]
[398978017,1766046451673,-532.846994,0.00039372,120]
[398978018,1766046451703,-532.846994,0.00039372,120]
[398978020,1766046451735,-532.846994,0.00039372,120]
[398978021,1766046451768,-532.846994,0.00039372,120]
[398978022,1766046451801,-532.846994,0.00039372,120]
[398978024,1766046451832,-532.846994,0.00039372,120]
[398978025,1766046451864,-151.0,0.00039372,120]
[398978027,1766046451896,-201.521454,0.00039372,120]
[398978028,1766046451926,-151.0,0.00039372,120]
[398978030,1766046451958,-165.015681,0.00039372,120]
[398978031,1766046451989,-930.97,0.000394,14]
[398978033,1766046452026,-600.0,0.00039948,60]
[398978034,1766046452055,-6013.00422134,0.0004,120]
[398978036,1766046452086,-1041.66666667,0.0004,120]
[398978037,1766046452119,-294.65,0.000413,30]
[398978039,1766046452154,-200.0,0.0004278,120]
[398978040,1766046452185,-1644.88719657,0.00042838,28]
[398978041,1766046452220,-720.0,0.00043943,60]
[398978042,1766046452254,-810.5,0.00044828,60]
[398978043,1766046452284,-788.5,0.00044828,60]
[398978044,1766046452314,-47104.0,0.00045,120]
[398978045,1766046452346,-1041.66666667,0.00045,120]
[398978046,1766046452379,-532.846994,0.00045,120]
[398978048,1766046452410,-532.846994,0.00045,120]
[398978049,1766046452441,-532.846994,0.00045,120]
[398978051,1766046452471,-532.846994,0.00045,120]
[398978052,1766046452501,-200.0,0.0004549,120]
[398978054,1766046452531,-1644.88719657,0.00046503,28]
[398978055,1766046452558,-1041.66666667,0.00046695,120]
[398978057,1766046452585,-223.60196124,0.00046794,120]
[398978058,1766046452613,-370000.0,0.00046795,120]
[398978060,1766046452643,-532.846994,0.00046795,120]
[398978061,1766046452673,-532.846994,0.00046795,120]
[398978063,1766046452704,-532.846994,0.00046795,120]
[398978064,1766046452737,-532.84698585,0.00046795,120]
[398978068,1766046452920,-522367.61120174,0.00047,14]
[398978070,1766046452949,-644.0,0.00047,120]
[398978071,1766046452977,-1039.084218,0.0004712,19]
[398978072,1766046453007,-151.0,0.00047123,90]
[398978074,1766046453035,-151.0,0.00047123,90]
[398978075,1766046453066,-201.969553,0.00047123,90]